Cogmind - Beta 16 --- EXPLORER MODE // 2025.12.19 @ 15:27:16 Player: K.K.Y. Result: Destroyed by as-74302 with Assembled Blade Performance ------------- Evolutions (0) 0 Regions Visited (2) 400 Robots Destroyed (14) 70 Value Destroyed (220) 220 Prototype IDs (7) 140 Alien Tech Used (0) 0 Bonus (78) 78 TOTAL SCORE: 908 Bonus ------- Follower Combat Kills 78 Cogmind --------- Core Integrity 0/250 Matter 295/300 Energy 15/100 System Corruption 5% Temperature Warm (100) Movement Core (50) Location -10/Mines Parts ------- > --- POWER (1) -------- (None) > --- PROPULSION (2) --- (None) > --- UTILITY (3) ------ (None) > --- WEAPON (2) ------- (None) > --- INVENTORY (5) ---- Light Treads Medium Storage Unit Huge Storage Unit ECM Suite Peak State ------------ > --- POWER ------------ Ion Engine > --- PROPULSION ------- Light Treads Light Treads > --- UTILITY ---------- Structural Scanner Core Shielding Light Armor Plating > --- WEAPON ----------- Beam Cannon Beam Cannon > --- INVENTORY -------- Light Treads Medium Storage Unit Huge Storage Unit ECM Suite Mining Laser [Rating: 8] Favorites ----------- Power Ion Engine Engine Ion Engine Propulsion Light Treads Treads Light Treads Utility Core Shielding Device Structural Scanner Storage Medium Storage Unit Protection Core Shielding Weapon Beam Cannon Energy Gun Medium Laser Energy Cannon Beam Cannon Special Weapon Mining Laser Build | -11 -10 -10 ------- Run | Yrd Mat Min Slots Evolved 1 | . 1 . Power . | . . . Propulsion . | . . . Utility 1 | . 1 . Weapon . | . . . Parts Attached 13 | 7 4 2 Power 2 | 1 1 . Engine 2 | 1 1 . Core . | . . . Reactor . | . . . Propulsion 2 | 2 . . Treads 2 | 2 . . Leg . | . . . Wheel . | . . . Hover . | . . . Flight . | . . . Utility 5 | 3 1 1 Device 1 | . 1 . Storage 1 | 1 . . Processor . | . . . Hackware . | . . . Protection 3 | 2 . 1 Artifact . | . . . Weapon 4 | 1 2 1 Energy Gun 1 | 1 . . Energy Cannon 2 | . 2 . Ballistic Gun . | . . . Ballistic Cannon . | . . . Launcher . | . . . Special Weapon 1 | . . 1 Impact Weapon . | . . . Slashing Weapon . | . . . Piercing Weapon . | . . . Special Melee Weapon . | . . . Unidentified Prototypes . | . . . Parts Lost 9 | . . 9 Power 1 | . . 1 Propulsion 2 | . . 2 Utility 3 | . . 3 Weapon 3 | . . 3 Highest Loss Streak 9 | . . 9 To Critical Strikes . | . . . Average Backups 4 | 3 4 4 Power . | . . . Propulsion . | . . 1 Utility 2 | 2 2 3 Weapon . | . 1 . Tool/Special . | . . . Unused Backups 3 | . . 3 Power . | . . . Propulsion 1 | . . 1 Utility 2 | . . 2 Weapon . | . . . Tool/Special . | . . . Average Slot Usage (%) 90 | . 90 91 Engine 11 | . 12 10 Treads 24 | . 24 22 Device 6 | . 4 11 Protection 24 | . 25 23 Energy Gun 3 | . 4 . Energy Cannon 19 | . 19 22 Peak Build Rating 8 | 6 8 8 Average Rating 7 | 4 7 7 On Entrance 4 | . 6 8 Avg Prop Armor Cover (%) . | . . . Naked Turns 1 | . . 1 Heaviest Build 16 | 11 16 16 Greatest Support 40 | 40 40 40 Greatest Overweight (x) 3 | 3 3 1 Average Overweight (x) . | . . . Largest Inventory Capacity 10 | 10 5 5 Average Capacity 5 | 6 5 5 Most Carried 7 | 7 5 5 Average Carried 4 | 3 4 4 Final Capacity 5 | 5 5 5 Final Carried 5 | 3 5 4 Class Distribution -------------------- 100% | Hacker-Mutant Dominant Class ---------------- Hacker-Mutant | -10/Materials Hacker-Mutant | -10/Mines Resources | -11 -10 -10 ----------- Run | Yrd Mat Min Matter Collected 450 | 150 290 10 Remotely . | . . . Salvage Created 475 | 26 421 28 Parts 27 | 4 23 . Haulers Intercepted 2 | . 2 . Recyclers Shooed 2 | . 2 . Parts Field Recycled . | . . . Retrieved Matter . | . . . Parts Self-Destructed . | . . . Prevented . | . . . Parts Restored . | . . . Kills | -11 -10 -10 ------- Run | Yrd Mat Min Combat Hostiles Destroyed 10 | . 7 3 Guns 5 | . 5 . Cannons 5 | . 2 3 Classes Destroyed 7 | 1 5 1 Tunneler 1 | 1 . . Hauler 2 | . 2 . Recycler 1 | . 1 . Watcher 3 | . 3 . Swarmer 4 | . 4 . Grunt 3 | . 3 . Assembled 3 | . . 3 Best Kill Streak 4 | 1 4 2 Combat Bots Only 4 | . 4 2 Max Kills in Single Turn 1 | 1 1 1 Gunslinging . | . . . Exploded . | . . . Melee . | . . . Uniques/NPCs Destroyed . | . . . Combat | -11 -10 -10 -------- Run | Yrd Mat Min Hostile Shots Fired 125 | . 38 87 Missed 26 | . 7 19 Hits 99 | . 31 68 Melee 11 | . . 11 Projectile 88 | . 31 57 AOE 8 | . . 8 Critical Strikes 1 | . . 1 Part Disruptions 1 | . . 1 Damage Taken 903 | . 179 724 Core 266 | . 34 232 Absorbed by Shields . | . . . Redirected to Shielding 35 | . 7 28 Ignored by Resistances 561 | . 122 439 Core Remaining (%) 100 | 100 . . Volleys Fired 48 | 6 30 12 Largest 2 | 1 2 2 Hottest 120 | 50 120 120 Shots Fired 80 | 6 57 17 Gun 26 | 6 20 . Cannon 51 | . 37 14 Launcher . | . . . Special 3 | . . 3 Kinetic . | . . . Thermal 80 | 6 57 17 Explosive . | . . . Electromagnetic . | . . . Robot Hit Streak 14 | 6 13 14 Robot Miss Streak 2 | . 2 1 Penetration Max . | . . . Secondary Targets . | . . . Shots Hit Robots 57 | 6 38 13 Core Hits 23 | 1 14 8 Critical Kills . | . . . Critical Parts Destroyed . | . . . Critical Strikes 1 | . 1 . Burn 1 | . 1 . Melee Attacks . | . . . Impact . | . . . Slashing . | . . . Piercing . | . . . Sneak Attacks . | . . . Combat Hostiles . | . . . Follow-up Attacks . | . . . Damage Inflicted 933 | 75 595 263 Guns 286 | 75 211 . Cannons 577 | . 384 193 Explosions . | . . . Melee . | . . . Ramming 22 | . . 22 Kinetic . | . . . Thermal 911 | 75 595 241 Explosive . | . . . Electromagnetic . | . . . Impact . | . . . Slashing . | . . . Piercing . | . . . Highest Corruption 5 | . . 5 Average Corruption 1 | . . 1 Corruption Purged . | . . . Corruption Blocked . | . . . Effects 1 | . . 1 Message Errors 1 | . . 1 Overload Shots . | . . . Overflow Damage 22 | . 10 12 Projectiles 22 | . 10 12 Explosions . | . . . Melee . | . . . Knockbacks . | . . . Impact . | . . . Kinetic . | . . . Secondary . | . . . Self-Inflicted Damage 5 | . . 5 Shots . | . . . Rammed 6 | . . 6 Targets Rammed 6 | . . 6 Kicked . | . . . Crushed . | . . . Highest Temperature 599 | 48 599 527 Average Temperature 164 | 24 148 258 Received Heat Transfer 526 | . 66 460 Effects 19 | . 11 8 Shutdowns 2 | . 2 . Energy Bleed 3 | . 1 2 Interference 5 | . 3 2 Matter Decay 2 | . 2 . Short Circuit 1 | . . 1 Damage (minor) 1 | . 1 . Damage (major) 5 | . 2 3 Siege Activations . | . . . Martial Activations . | . . . Shielding Activations . | . . . Robots Disrupted . | . . . Combat Hostiles . | . . . Robots Corrupted . | . . . Combat Hostiles . | . . . Parts Fried . | . . . Impact Corruptions . | . . . Robots Melted . | . . . Combat Hostiles . | . . . Parts Melted 3 | . 3 . Heat Transferred 2246 | 222 1517 507 Parts Sabotaged . | . . . Parts Stolen . | . . . Parts Stripped . | . . . Power Chain Reactions . | . . . Alert | -11 -10 -10 ------- Run | Yrd Mat Min Maximum Alert Level . | . . . Low Security (%) 100 | 100 100 100 Level 1 . | . . . Level 2 . | . . . Level 3 . | . . . Level 4 . | . . . Level 5 . | . . . High Security . | . . . Max Security . | . . . Peak Influence 86 | 5 86 30 Initial . | . . . Average 5 | . 8 . Influence Increases 300 | 5 229 66 Destroy 0b10 Robot/C 180 | . 140 40 Destroy 0b10 Robot/NC 35 | 5 30 . Destroy Leader 50 | . 40 10 Successful Hack 18 | . 18 . Destroy Structure 2 | . 1 1 Partial Spotted 15 | . . 15 Influence Decreases 300 | 5 229 66 Time Decay 249 | 5 229 15 Lost Part 31 | . . 31 Lost Ally 20 | . . 20 Squads Dispatched . | . . . Investigation . | . . . Extermination . | . . . Reinforcement . | . . . Assault . | . . . Garrison . | . . . Intercept . | . . . Searches Triggered . | . . . Construction Impeded . | . . . Haulers Reinforced . | . . . Active Scanning Responses . | . . . Cargo Convoy Interrupts . | . . . Stealth | -11 -10 -10 --------- Run | Yrd Mat Min Distress Signals . | . . . Communications Jammed . | . . . Distress Signals . | . . . Times Spotted 35 | . 11 24 Peak Tracking Total 16 | . 3 16 Tactical Retreats 1 | . . 1 Traps | -11 -10 -10 ------- Run | Yrd Mat Min Traps Triggered 3 | . 3 . Indirectly . | . . . Trap Hack Attempts . | . . . Triggered . | . . . Disarmed . | . . . Reprogrammed . | . . . Reused . | . . . Traps Extracted . | . . . Installed . | . . . Triggered . | . . . Machines | -11 -10 -10 ---------- Run | Yrd Mat Min Machines Disabled . | . . . Max in Single Turn . | . . . Machines Repaired . | . . . Machines Dismantled . | . . . Machines Sabotaged . | . . . Overloaded Fab Kills . | . . . Hacking | -11 -10 -10 --------- Run | Yrd Mat Min Machines Accessed 5 | . 5 . Terminals 5 | . 5 . Fabricators . | . . . Repair Stations . | . . . Recycling Units . | . . . Scanalyzers . | . . . Garrison Access . | . . . Total Hacks 23 | . 23 . Successful 16 | . 16 . Failed 7 | . 7 . Catastrophic . | . . . Database Lockouts . | . . . Manual 20 | . 20 . Terminals 23 | . 23 . Fabricators . | . . . Repair Stations . | . . . Recycling Units . | . . . Scanalyzers . | . . . Garrison Access . | . . . Terminal Hacks 12 | . 12 . Robot Analysis 2 | . 2 . Prototype ID Bank 10 | . 10 . Fabricator Hacks . | . . . Repair Station Hacks . | . . . Recycling Unit Hacks . | . . . Scanalyzer . | . . . Garrison Access Hacks . | . . . Unauthorized Hacks 4 | . 4 . Terminals 4 | . 4 . Botnet 4 | . 4 . Fabricators . | . . . Repair Stations . | . . . Recycling Units . | . . . Scanalyzers . | . . . Garrison Access . | . . . Data Cores Recovered . | . . . Used . | . . . Hacking Detections 4 | . 4 . Full Trace Events . | . . . Feedback Events . | . . . Feedback Blocked . | . . . Robot Schematics Acquired . | . . . Robots Built . | . . . Authchips . | . . . Time . | . . . Total Robot Build Rating . | . . . Part Schematics Acquired . | . . . Parts Built . | . . . Authchips . | . . . Time . | . . . Total Part Build Rating . | . . . Part Studies Acquired . | . . . Parts Repaired . | . . . Time . | . . . Parts Recycled . | . . . Recycled Matter . | . . . Retrieved Matter . | . . . Retrieved Components . | . . . Parts Scanalyzed . | . . . Part Schematics Acquired . | . . . Parts Damaged . | . . . Bothacking | -11 -10 -10 ------------ Run | Yrd Mat Min Used RIF Installer . | . . . Robots Hacked . | . . . Non-combat . | . . . Combat . | . . . Robot Hacks Applied . | . . . Relay Couplers Released . | . . . Fabnet Peak Effective % . | . . . Robots Rewired . | . . . Allies Hacked . | . . . Hacks Repelled . | . . . Allies | -11 -10 -10 -------- Run | Yrd Mat Min Total Allies 2 | . . 2 Largest Group 2 | . . 2 Highest-Rated Group 55 | . . 55 Highest-Rated Ally 31 | . . 31 Total Orders . | . . . Ally Attacks 11 | . . 11 Total Damage 148 | . . 148 Kills 3 | . . 3 Allies Corrupted . | . . . Allies Melted . | . . . Intel | -11 -10 -10 ------- Run | Yrd Mat Min Active Infowar (turns) 772 | . 416 356 Structural 772 | . 416 356 Robot Analysis Total 2 | . 2 . Derelict Logs Recovered 1 | . . 1 Drone Launches . | . . . Drone Recoveries . | . . . Exploration | -11 -10 -10 ------------- Run | Yrd Mat Min Turns Passed 1638 | 89 1151 398 Spaces Moved 898 | 44 648 206 Core 55 | 17 1 37 Treads 843 | 27 647 169 Legs . | . . . Wheels . | . . . Hover . | . . . Flight . | . . . Fastest Speed 50 | 50 160 50 Average Speed 154 | 141 160 140 Slowest Speed 200 | 200 200 160 Overloaded Moves . | . . . Propulsion Burnouts . | . . . Robots Hopped . | . . . Potential Cave-ins . | . . . Cave-ins Triggered . | . . . Exploration Rate (%) 53 | 4 97 59 Regions Visited 2 Branch Regions 1 Pre-discovered Areas . | . . . Known Exits Taken 2 | 1 1 . Unknown Exits Taken . | . . . Scrap Searched 2 | . . 2 Spaces Dug . | . . . Terrain Destroyed 1 | . . 1 Melee . | . . . Projectile 1 | . . 1 AOE . | . . . Terrain Rammed . | . . . Walls Destroyed . | . . . Machines Disabled . | . . . Actions | -11 -10 -10 --------- Run | Yrd Mat Min Total 1061 | 65 704 292 Wait 74 | . 9 65 Move 896 | 43 647 206 Hop . | . . . Pick Up 14 | 8 6 . Fast Attach 5 | 1 4 . Attach 11 | 6 4 1 Detach 2 | 1 1 . Swap 2 | . 1 1 Drop 3 | . 2 1 Fire 48 | 6 30 12 Melee . | . . . Ram 4 | . . 4 Kick . | . . . Crush 2 | . . 2 Escape Stasis . | . . . Rewire . | . . . Trap . | . . . Miscellaneous . | . . . Route ------- -11/Scrapyard -10/Materials (discovered 5 exits: *Mat x3 / *Min / *Sub) -10/Mines (discovered 2 exits: *Mat x2) History --------- Turn | Location | Event 56 | -11/Scrapyard | Identified exit to Materials 56 | -11/Scrapyard | Discovered exit to Materials (range 16) 90 | -11/Scrapyard | Entered Materials 90 | -10/Materials | Evolved 1 slot: Utility x1 217 | -10/Materials | Identified exit to Materials 217 | -10/Materials | Discovered exit to Materials (range 3) 238 | -10/Materials | Identified exit to Mines 238 | -10/Materials | Discovered exit to Mines (range 16) 309 | -10/Materials | Build established: Hacker-Mutant 327 | -10/Materials | Discovered exit to Materials (range 14) 641 | -10/Materials | Discovered exit to Materials (range 5) 881 | -10/Materials | Identified exit to Subcaves 881 | -10/Materials | Discovered exit to Subcaves (range 7) 1241 | -10/Materials | Entered Mines 1241 | -10/Mines | Discovered exit to Materials (range 9) 1550 | -10/Mines | Assembled infested the area 1578 | -10/Mines | Found a damaged Exp. Sensor Array with a note attached 1600 | -10/Mines | Core integrity fell below 50% 1621 | -10/Mines | Core integrity fell below 20% 1639 | -10/Mines | Destroyed by as-74302 with Assembled Blade Last Messages --------------- 01603_ Overheating: Energy bleed (-20). 01603_ Broken Lgt. Treads destroyed. 01604_ Overheating: Core Shielding damaged (-6). 01604_ Overheating: Structural Scanner damaged (-8). 01604_ Overheating: Beam Cannon damaged (-16). 01604_ Slammed into as-98065. 01605_ Beam Cannon destroyed. 01606_ Overheating: Energy bleed (-13). 01607_ Structural Scanner destroyed. 01614_ Acquired derelict log, extracted data. Loading 1 Mines exit... 01615_ IXHQJ4EU5JJUH:0GWW3FAUUYAEF4RYQ7 ,#4RH 01626_ S-10 Pest destroyed. 01628_ Core Shielding destroyed. 01628_ System corrupted by crushing effect (+1). 01629_ Destroyed Asb. Hover Unit. 01633_ as-14469 destroyed. 01638_ Mining Laser destroyed. 01638_ System corrupted by crushing effect (+3). Map ----- +----------------------------------------------------+ | | | | | | | | | | | | | | | | | | | | | | | | | | | | | ??????????????????????????????????? | | ??????????????????????????????????? | | ??????????????????????????????????? | | ??????????????????????????????????? | | ??????????????????????????????????? | | ??????????????????????????????????? | | ?????????#########???????????????## | | ?????????# #??????????????# | | ????????##a""" #?????????????# | | ????????#Ta""" < #??????????### | | ?????????#a""" #?????????## # | | ?????????#@a= #?????????# # | | ?????????##a%a####????????## %# | | ???????????#% #?????????### # | | ???????????# #????????## # | | ???????????# #????????# ## | | ???????????# #????????## ### | | ???????????# #????????### ## | | ???????????# #?????????## # | | ???????????# ############ % | | ???????????# " | | ???????????# # | | ???????????############## ######## | | ???????????????????????# ##### | | ???????????????????????# #??## # | | ??????????????????????# ??## # | | ?????????????????????# ?? # | | ????????????????????# ?###? | | ???????????????????# #????? # | | ??????????????????? ##???## ## | | ??????????????????# #?????## ## | | ?????????????????? #??????## | | ?????????????????? ???????## # | | ??????????????????? ????????## # | | ?????????????????????????????## ## | | ?????????????????????????????# ## | +----------------------------------------------------+ Best States ------------- Heat Dissipation 25 Energy Generation 10 Energy Capacity 250 Matter Stores 300 Matter Capacity 300 Sight Range 16 Terrain Scan Density 10 Armor Coverage 150 Resistance: KI 35 Resistance: TH 35 Resistance: EX 35 Resistance: EM 35 Resistance: I 35 Resistance: S 35 Resistance: P 35 Core Shielding 20 Evasion (%) 50 Recoil Reduction 2 Offensive Hacking 20 Item Schematics ----------------- None Robot Schematics ------------------ None Fabricated ------------ Nothing Repaired ---------- Nothing Studied --------- None Alien Tech Used ----------------- None Achievements -------------- None Challenges ------------ None Game ------ Seed BombPiercelightAxe Manual? 0 Play Time 00:12:05 Cumulative 214.8 hours Start 2025.12.19 @ 15:11:56 End 2025.12.19 @ 15:27:16 Sessions 1 Manual Loads 0 Difficulty Explorer Special Mode None Game No. 325 Rogue 0 Adventurer 0 Explorer 325 Win Type - Total 0 Types 0/0/0/0/0/0/0/0/0/0 Lore% 71 Gallery% 68 Achievement% 53 Wizard Run 0 Options --------- Layout 1 ASCII 0 Keyboard 0 Movement Mouse Keybinds 0 Fullscreen 1 Font 24/Smallcaps Map View 50x35 Zoom Use 0% Tactical HUD 1 Map Filters NONE Filters NONE Steam 1 RUN: 2bf5cf0e-6216-4718-b494-d402ec179405